bitfinex/quotes_SOLUSD_20230116
["timestamp","ask_amount","ask_price","bid_price","bid_amount"]
[1673868245935,37.09803,23.346,23.33,16.61]
[1673868246146,17.0,23.345,23.33,16.61]
[1673868246375,37.09803,23.344,23.33,16.61]
[1673868246585,20.0,23.342,23.33,16.61]
[1673868246779,57.09803,23.341,23.33,16.61]
[1673868246992,69.16,23.341,23.33,16.61]
[1673868247208,41.46196354,23.341,23.33,16.61]
[1673868247432,17.0,23.34,23.33,16.61]
[1673868247740,20.0,23.339,23.33,16.61]
[1673868247936,17.0,23.338,23.33,16.61]
[1673868248141,20.0,23.337,23.33,16.61]
[1673868248367,17.0,23.336,23.33,16.61]
[1673868248591,20.0,23.337,23.33,16.61]
[1673868248805,20.0,23.341,23.33,16.61]
[1673868249214,32.17,23.34,23.33,16.61]
[1673868249413,20.0,23.339,23.33,16.61]
[1673868250169,52.16,23.347,23.33,16.61]
[1673868250362,52.16,23.347,23.33,16.64]
[1673868251007,17.0,23.346,23.33,16.64]
[1673868251214,52.16,23.345,23.33,16.64]
[1673868251427,17.0,23.344,23.33,16.64]
[1673868251741,52.16,23.343,23.33,16.64]
[1673868251941,17.0,23.342,23.33,16.64]
[1673868252157,52.16,23.341,23.33,16.64]
[1673868252356,17.0,23.34,23.33,16.64]
[1673868252567,20.0,23.339,23.33,16.64]
[1673868252988,32.15,23.35,23.33,16.64]
[1673868253199,20.0,23.349,23.33,16.64]
[1673868253538,32.15,23.348,23.33,16.64]
[1673868253850,20.0,23.347,23.33,16.64]
[1673868254349,17.0,23.346,23.33,16.64]
[1673868254562,49.16,23.346,23.33,16.64]
[1673868254769,32.15,23.348,23.33,16.64]
[1673868255306,32.15,23.35,23.33,16.64]
[1673868255729,21.46196354,23.349,23.33,16.64]
[1673868255940,49.15,23.348,23.33,16.64]
[1673868256455,70.61196354,23.348,23.33,16.64]
[1673868256674,32.14,23.357,23.34,16.55]
[1673868257109,21.46196354,23.356,23.34,16.55]
[1673868258026,17.0,23.355,23.34,16.55]
[1673868258773,17.0,23.357,23.34,16.55]
[1673868259301,21.46196354,23.358,23.34,16.55]
[1673868259509,20.0,23.357,23.34,16.55]
[1673868260575,17.0,23.356,23.34,16.55]
[1673868261210,20.0,23.357,23.34,12.41]
[1673868261424,21.46196354,23.355,23.34,12.41]
[1673868261632,21.46196354,23.355,23.34,12.29699624]
[1673868262249,52.14,23.357,23.34,12.29699624]
[1673868262459,38.46196354,23.356,23.34,12.29699624]
[1673868262685,32.14,23.355,23.34,12.29699624]
[1673868262900,17.0,23.354,23.34,12.29699624]
[1673868263091,38.46196354,23.354,23.34,12.29699624]
[1673868263303,17.0,23.354,23.34,12.29699624]
[1673868263512,17.0,23.355,23.34,12.29699624]
[1673868263947,21.46196354,23.354,23.34,12.29699624]
[1673868264159,17.0,23.353,23.34,12.29699624]
[1673868264789,49.15,23.354,23.34,12.29699624]
[1673868265189,21.46196354,23.353,23.34,12.29699624]
[1673868265400,49.15,23.352,23.34,12.29699624]
[1673868265607,33.18429468,23.367,23.34,42.19448143]
[1673868265829,112.3463,23.374,23.36,12.51]
[1673868266039,24.93803,23.373,23.36,12.51]
[1673868266261,4.93803,23.372,23.36,12.51]
[1673868266576,32.12,23.371,23.36,12.51]
[1673868266786,20.0,23.37,23.36,12.51]
[1673868266975,32.13,23.369,23.36,12.51]
[1673868267183,20.0,23.368,23.36,12.51]
[1673868267713,20.0,23.369,23.36,12.51]
[1673868267923,49.13,23.368,23.36,12.51]
[1673868268139,20.0,23.367,23.36,12.51]
[1673868268350,17.0,23.366,23.36,12.51]
[1673868269075,17.0,23.366,23.34,79.98748519]
[1673868269076,52.13,23.365,23.35,12.51]
[1673868269294,20.0,23.363,23.35,12.51]
[1673868269509,74.06803,23.362,23.35,12.51]
[1673868270545,24.93803,23.361,23.336,20.0]
[1673868270777,20.0,23.359,23.34,12.46]
[1673868270988,57.07803,23.358,23.34,12.46]
[1673868271209,20.0,23.356,23.34,12.46]
[1673868271413,49.14,23.355,23.34,12.46]
[1673868271628,20.0,23.354,23.34,12.46]
[1673868271844,49.15,23.353,23.34,12.46]
[1673868272053,20.0,23.352,23.34,12.46]
[1673868272266,49.15,23.351,23.34,12.46]
[1673868272769,20.0,23.35,23.34,12.46]
[1673868272981,17.0,23.349,23.34,12.46]
[1673868273309,20.0,23.348,23.34,12.46]
[1673868273714,17.0,23.347,23.34,12.46]
[1673868275629,20.0,23.348,23.34,12.46]
[1673868275835,20.0,23.354,23.34,12.46]
[1673868276156,32.15,23.353,23.34,16.69]
[1673868276369,20.0,23.352,23.34,16.69]
[1673868276676,32.15,23.351,23.34,16.69]
[1673868276881,20.0,23.35,23.34,16.69]
[1673868277100,20.0,23.352,23.34,16.69]
[1673868277520,32.15,23.351,23.34,16.69]
[1673868277729,20.0,23.35,23.34,16.69]
[1673868277927,32.14,23.358,23.34,16.69]
[1673868278133,20.0,23.357,23.34,16.69]
[1673868278774,20.0,23.358,23.34,16.69]
[1673868279182,32.14,23.36,23.34,16.69]
[1673868279183,20.0,23.359,23.34,16.69]
[1673868279391,17.0,23.358,23.34,16.69]
[1673868279620,20.0,23.357,23.34,16.69]
[1673868279808,17.0,23.356,23.34,16.69]
[1673868280551,49.14,23.356,23.34,16.69]
[1673868282245,17.0,23.356,23.34,16.69]
[1673868282881,32.14,23.355,23.34,16.69]
[1673868283082,17.0,23.354,23.34,16.69]
[1673868283293,32.15,23.353,23.34,16.69]
[1673868283520,17.0,23.352,23.34,16.69]
[1673868284134,32.15,23.351,23.34,16.69]
[1673868284359,17.0,23.35,23.34,16.69]
[1673868285927,20.0,23.349,23.333,108.5293]
[1673868286139,49.15,23.348,23.333,108.5293]
[1673868286466,20.0,23.347,23.333,108.5293]
[1673868286651,49.16,23.346,23.333,108.5293]
[1673868288352,49.16,23.346,23.33,16.53]
[1673868288761,32.16,23.346,23.33,16.53]
[1673868290759,20.0,23.347,23.33,16.53]
[1673868290966,52.15,23.353,23.33,16.53]
[1673868292769,21.46196354,23.352,23.33,16.53]
[1673868292973,37.08803,23.351,23.324,119.58]
[1673868293187,20.0,23.349,23.324,119.58]
[1673868293381,54.08803,23.348,23.324,119.58]
[1673868293604,20.0,23.347,23.324,119.58]
[1673868293819,49.16,23.346,23.324,119.58]
[1673868294031,20.0,23.345,23.324,119.58]
[1673868294240,49.16,23.344,23.33,16.53]
[1673868294450,20.0,23.343,23.33,16.53]
[1673868294654,49.16,23.342,23.33,16.53]
[1673868295098,20.0,23.341,23.33,16.53]
[1673868295415,49.17,23.34,23.33,16.53]
[1673868295604,20.0,23.339,23.325,20.0]
[1673868296158,17.0,23.338,23.325,20.0]
[1673868296467,20.0,23.337,23.325,20.0]
[1673868296780,20.0,23.337,23.324,119.58]
[1673868296966,17.0,23.336,23.324,119.58]
[1673868297606,49.17,23.336,23.324,119.58]
[1673868298025,17.0,23.336,23.324,119.58]
[1673868298877,17.0,23.336,23.325,20.0]
[1673868299299,20.0,23.337,23.325,20.0]
[1673868299511,20.0,23.346,23.325,20.0]
[1673868299730,32.16,23.345,23.33,16.69]
[1673868299920,20.0,23.344,23.33,16.69]
[1673868300879,32.16,23.343,23.33,16.69]
[1673868301072,20.0,23.342,23.33,16.69]
[1673868301497,4.93803,23.348,23.33,16.69]
[1673868301498,32.16,23.347,23.33,16.69]
[1673868302021,4.93803,23.348,23.33,16.69]
[1673868302351,4.93803,23.348,23.331,17.0]
[1673868302548,4.93803,23.348,23.34,16.69]
[1673868303286,32.14,23.36,23.34,16.69]
[1673868303697,20.0,23.359,23.34,16.69]
[1673868304015,20.0,23.357,23.334,108.7065]
[1673868304234,52.14,23.356,23.335,115.3369]
[1673868304444,52.14,23.356,23.336,20.0]
[1673868304981,17.0,23.355,23.336,20.0]
[1673868305173,52.15,23.354,23.336,20.0]
[1673868305394,17.0,23.353,23.336,20.0]
[1673868305601,32.15,23.352,23.336,20.0]
[1673868305808,37.0,23.351,23.335,115.3369]
[1673868306030,32.15,23.35,23.335,115.3369]
[1673868306239,37.0,23.349,23.299,72.48719031]
[1673868306440,37.0,23.349,23.295,22.2233512]
[1673868306441,32.15,23.348,23.326,118.4259]
[1673868306653,37.0,23.347,23.326,118.4259]
[1673868306856,32.16,23.346,23.327,20.0]
[1673868307074,17.0,23.345,23.327,20.0]
[1673868310536,17.0,23.345,23.326,118.4259]
[1673868310951,17.0,23.345,23.327,20.0]
[1673868311165,17.0,23.345,23.326,118.4259]
[1673868311389,32.16,23.344,23.326,118.4259]
[1673868311601,37.0,23.343,23.326,118.4259]
[1673868311812,32.16,23.342,23.326,118.4259]
[1673868312028,37.0,23.341,23.326,118.4259]
[1673868312242,32.17,23.34,23.326,118.4259]
[1673868312427,37.0,23.339,23.326,118.4259]
[1673868312637,32.17,23.338,23.326,118.4259]
[1673868312843,37.0,23.337,23.326,118.4259]
[1673868317581,37.0,23.337,23.327,20.0]
[1673868317998,37.0,23.337,23.326,118.4259]
[1673868318316,32.17,23.336,23.326,118.4259]
[1673868318526,17.0,23.335,23.327,20.0]
[1673868319601,17.0,23.336,23.327,20.0]
[1673868321284,17.0,23.336,23.322,79.5114]
[1673868321505,32.17,23.335,23.322,79.5114]
[1673868321692,37.0,23.334,23.32,16.57]
[1673868321898,32.17,23.333,23.32,16.57]
[1673868322106,17.0,23.332,23.31,36.69]
[1673868322329,52.18,23.331,23.31,36.69]
[1673868322541,17.0,23.33,23.31,36.69]
[1673868322738,52.18,23.329,23.31,36.69]
[1673868322944,17.0,23.328,23.31,36.69]
[1673868323159,52.18,23.327,23.31,36.69]
[1673868323378,17.0,23.326,23.31,36.69]
[1673868323802,20.0,23.327,23.31,36.69]
[1673868324017,17.0,23.326,23.31,36.69]
[1673868324226,17.0,23.325,23.31,36.69]
[1673868324638,32.18,23.329,23.31,36.69]
[1673868324964,37.0,23.328,23.31,36.69]
[1673868325187,32.18,23.327,23.31,36.69]
[1673868325502,17.0,23.326,23.31,36.69]
[1673868326731,32.19,23.325,23.31,36.69]
[1673868326959,17.0,23.324,23.31,36.69]
[1673868327484,17.0,23.326,23.31,36.69]
[1673868327694,32.19,23.325,23.31,16.69]
[1673868327885,17.0,23.324,23.31,16.69]
[1673868328306,17.0,23.326,23.31,16.69]
[1673868328538,32.19,23.325,23.31,16.69]
[1673868328748,17.0,23.324,23.31,16.69]
[1673868328955,38.46196354,23.324,23.307,34.30515273]
[1673868329283,52.19,23.323,23.307,34.30515273]
[1673868329464,17.0,23.322,23.3,16.7]
[1673868329675,52.19,23.321,23.3,16.7]
[1673868330009,17.0,23.32,23.3,16.7]
[1673868330220,52.19,23.319,23.3,16.7]
[1673868330535,17.0,23.318,23.3,16.7]
[1673868330744,20.0,23.317,23.303,20.0]
[1673868330954,17.0,23.316,23.303,20.0]
[1673868331585,17.0,23.316,23.3,16.7]
[1673868332323,20.0,23.317,23.303,20.0]
[1673868332855,51.89,23.323,23.303,20.0]
[1673868333696,20.0,23.323,23.303,20.0]
[1673868333910,20.0,23.327,23.303,20.0]
[1673868334218,32.18,23.326,23.303,20.0]
[1673868334403,32.18,23.326,23.31,16.53]
[1673868334618,20.0,23.327,23.31,16.53]
[1673868336305,32.18,23.328,23.31,16.53]
[1673868336942,17.0,23.327,23.31,16.53]
[1673868337151,32.18,23.326,23.31,16.53]
[1673868337362,17.0,23.325,23.31,16.53]
[1673868337572,32.19,23.324,23.31,16.53]
[1673868337903,17.0,23.323,23.305,20.0]
[1673868338214,52.19,23.322,23.304,20.0]
[1673868338406,17.0,23.321,23.304,20.0]
[1673868338747,52.19,23.32,23.304,20.0]
[1673868338927,17.0,23.319,23.3,16.7]
[1673868339138,20.0,23.318,23.3,16.7]
[1673868339349,17.0,23.317,23.3,16.7]
[1673868339561,32.2,23.316,23.3,16.7]
[1673868340112,49.2,23.317,23.3,16.7]
[1673868342211,41.46196354,23.316,23.3,16.7]
[1673868342525,41.46196354,23.316,23.296,191.6062]
[1673868342526,49.2,23.315,23.296,191.6062]
[1673868342726,20.0,23.314,23.296,191.6062]
[1673868342937,49.2,23.313,23.296,191.6062]
[1673868343132,20.0,23.312,23.296,74.3323]
[1673868343345,49.21,23.311,23.296,74.3323]
[1673868343675,49.21,23.311,23.29,111.127621]
[1673868343676,20.0,23.31,23.29,111.127621]
[1673868343886,49.21,23.309,23.29,111.127621]
[1673868344093,49.21,23.309,23.29,94.437621]
[1673868344094,20.0,23.308,23.29,94.437621]
[1673868344291,52.21,23.307,23.29,94.437621]
[1673868344506,20.0,23.306,23.29,94.437621]
[1673868344734,52.21,23.305,23.29,94.437621]
[1673868344929,17.0,23.304,23.29,94.437621]
[1673868345258,16.69,23.3,23.29,94.437621]
[1673868345454,89.22,23.299,23.263,20.0]
[1673868345787,320.60812698,23.299,23.264,15.27058261]
[1673868346108,20.0,23.297,23.263,20.0]
[1673868346411,16.66,23.29,23.26,16.76]
[1673868346625,52.24,23.289,23.26,16.76]
[1673868346828,17.0,23.288,23.26,16.76]
[1673868347044,32.24,23.287,23.27,16.69]
[1673868347366,32.24,23.287,23.26,16.76]
[1673868347367,17.0,23.286,23.26,16.76]
[1673868347556,52.24,23.285,23.26,16.76]
[1673868347884,52.24,23.285,23.261,20.0]
[1673868347885,17.0,23.284,23.261,20.0]
[1673868348098,32.24,23.283,23.261,20.0]
[1673868348284,17.0,23.282,23.261,20.0]
[1673868348498,32.25,23.281,23.26,16.76]
[1673868348822,17.0,23.28,23.26,16.76]
[1673868349038,32.25,23.279,23.26,16.76]
[1673868349247,17.0,23.278,23.26,16.76]
[1673868350088,32.25,23.277,23.26,16.76]
[1673868350283,17.0,23.276,23.26,16.76]
[1673868350488,32.25,23.275,23.26,16.76]
[1673868350935,32.25,23.281,23.26,16.76]
[1673868351122,20.0,23.28,23.26,16.76]
[1673868351331,32.25,23.279,23.26,16.76]
[1673868351543,20.0,23.278,23.25,16.69]
[1673868351755,52.25,23.277,23.25,16.69]
[1673868351962,52.25,23.277,23.248,15.27058261]
[1673868352169,52.25,23.277,23.221,102.78621494]
[1673868352170,16.57,23.27,23.23,16.53]
[1673868352396,20.0,23.268,23.23,16.53]
[1673868352594,52.27,23.267,23.23,16.53]
[1673868352801,17.0,23.266,23.23,16.53]
[1673868353008,52.27,23.265,23.23,16.53]
[1673868353221,16.69,23.26,23.23,16.53]
[1673868353433,20.0,23.258,23.23,16.53]
[1673868353677,20.0,23.258,23.223,20.0]
[1673868353678,52.28,23.257,23.223,20.0]
[1673868353850,16.69,23.25,23.221,0.54929172]
[1673868354060,16.69,23.24,23.221,0.54929172]
[1673868354281,52.3,23.239,23.221,0.54929172]
[1673868354493,69.3,23.239,23.221,0.54929172]
[1673868354699,90.76196354,23.239,23.221,0.54929172]
[1673868354911,69.3,23.239,23.221,0.54929172]
[1673868355113,16.69,23.26,23.221,0.54929172]
[1673868355329,21.46196354,23.247,23.23,16.65]
[1673868355535,21.46196354,23.247,23.222,117.0421]
[1673868355954,16.57,23.27,23.24,16.69]
[1673868356167,32.28,23.257,23.24,16.69]
[1673868356377,32.27,23.261,23.24,16.69]
[1673868356585,21.46196354,23.26,23.24,16.69]
[1673868356813,32.28,23.259,23.23,16.69]
[1673868357126,32.28,23.259,23.231,135.4191]
[1673868357337,32.28,23.259,23.233,20.0]
[1673868357576,53.74196354,23.259,23.233,20.0]
[1673868357764,32.27,23.267,23.24,16.53]
[1673868357975,144.8162,23.276,23.241,20.0]
[1673868358204,53.71196354,23.276,23.25,16.53]
[1673868358413,21.46196354,23.275,23.25,16.53]
[1673868358609,32.26,23.274,23.25,16.53]
[1673868358939,53.72196354,23.274,23.25,16.53]
[1673868359754,53.72196354,23.274,23.245,20.0]
[1673868360076,53.72196354,23.274,23.244,119.3729]
[1673868360286,16.69,23.27,23.24,16.53]
[1673868360498,52.26,23.269,23.24,16.53]
[1673868360720,73.72196354,23.269,23.24,16.53]
[1673868360938,21.46196354,23.268,23.24,16.53]
[1673868361149,52.27,23.267,23.24,16.53]
[1673868361341,37.0,23.266,23.24,16.53]
[1673868361545,52.27,23.265,23.24,16.53]
[1673868361750,17.0,23.264,23.24,16.53]
[1673868361988,52.27,23.263,23.24,16.53]
[1673868362181,20.0,23.262,23.24,16.53]
[1673868362391,20.0,23.262,23.242,20.0]
[1673868362708,32.27,23.267,23.242,20.0]
[1673868363033,21.46196354,23.274,23.25,16.69]
[1673868363244,32.26,23.273,23.25,16.69]
[1673868363771,21.46196354,23.272,23.24,16.53]
[1673868363979,20.0,23.27,23.24,16.53]
[1673868364170,32.26,23.269,23.24,16.53]
[1673868364381,17.0,23.268,23.24,16.53]
[1673868364591,32.27,23.267,23.24,16.53]
[1673868364797,17.0,23.266,23.25,16.65]
[1673868365018,32.27,23.265,23.25,16.65]
[1673868365228,21.46196354,23.272,23.25,16.65]
[1673868365437,32.26,23.271,23.25,16.65]
[1673868365876,53.72196354,23.271,23.25,16.65]
[1673868366273,32.26,23.271,23.25,16.65]
[1673868366482,21.46196354,23.27,23.25,16.65]
[1673868366716,32.26,23.269,23.25,16.65]
[1673868367250,20.0,23.277,23.25,16.65]
[1673868367556,32.25,23.276,23.25,16.65]
[1673868367748,20.0,23.275,23.25,16.65]
[1673868367958,32.26,23.274,23.25,16.65]
[1673868368185,41.46196354,23.279,23.25,16.65]
[1673868368186,20.0,23.273,23.25,16.65]
[1673868368502,32.26,23.272,23.25,16.65]
[1673868368723,20.0,23.271,23.25,16.65]
[1673868369019,32.26,23.27,23.25,16.65]
[1673868369241,20.0,23.269,23.25,16.65]
[1673868369845,17.0,23.268,23.25,16.65]
[1673868372373,32.25,23.276,23.25,16.65]
[1673868372591,32.24,23.282,23.26,16.53]
[1673868372801,20.0,23.281,23.26,16.53]
[1673868373033,32.25,23.28,23.26,16.53]
[1673868373341,20.0,23.279,23.26,16.53]
[1673868373557,32.25,23.278,23.26,16.53]
[1673868373741,32.25,23.278,23.252,20.0]
[1673868373951,21.46196354,23.277,23.26,16.69]
[1673868374161,32.24,23.288,23.26,16.69]
[1673868374372,32.24,23.288,23.261,20.0]
[1673868374576,21.46196354,23.291,23.261,20.0]
[1673868374809,48.92,23.29,23.261,20.0]
[1673868375336,41.46196354,23.289,23.261,20.0]
[1673868375653,32.24,23.288,23.262,116.2489]
[1673868375858,20.0,23.287,23.262,116.2489]
[1673868376057,32.24,23.286,23.262,116.2489]
[1673868376261,20.0,23.285,23.263,20.0]
[1673868376473,32.24,23.284,23.263,20.0]
[1673868376699,20.0,23.283,23.263,20.0]
[1673868376910,20.0,23.283,23.27,16.62090373]
[1673868377097,32.23,23.294,23.27,16.62090373]
[1673868377312,20.0,23.293,23.27,16.62090373]
[1673868377538,32.23,23.292,23.27,16.62090373]
[1673868377755,20.0,23.291,23.27,16.62090373]
[1673868377948,32.23,23.29,23.27,16.62090373]
[1673868378153,20.0,23.289,23.27,16.62090373]
[1673868378574,32.24,23.288,23.27,16.62090373]
[1673868378804,20.0,23.289,23.27,16.62090373]
[1673868379019,20.0,23.295,23.27,16.62090373]
[1673868379329,20.0,23.307,23.28,16.69]
[1673868379542,32.21,23.306,23.28,16.69]
[1673868379850,21.46196354,23.306,23.29,16.69]
[1673868380063,32.21,23.305,23.29,16.69]
[1673868380275,32.2,23.312,23.29,31.96058261]
[1673868380465,32.2,23.318,23.291,15.27058261]
[1673868380675,21.46196354,23.318,23.291,15.27058261]
[1673868381000,32.2,23.317,23.291,15.27058261]
[1673868382146,53.66196354,23.317,23.292,20.0]
[1673868382355,32.2,23.317,23.292,20.0]
[1673868382564,21.46196354,23.321,23.292,20.0]
[1673868382770,32.19,23.32,23.292,20.0]
[1673868382981,32.19,23.32,23.293,17.0]
[1673868383324,20.0,23.319,23.29,16.69]
[1673868383635,32.2,23.318,23.29,16.69]
[1673868383849,20.0,23.317,23.29,16.69]
[1673868384049,32.2,23.316,23.29,16.69]
[1673868384267,20.0,23.315,23.29,31.96058261]
[1673868384580,32.2,23.314,23.29,16.69]
[1673868384789,20.0,23.313,23.29,16.69]
[1673868385003,32.2,23.312,23.29,16.69]
[1673868385209,20.0,23.311,23.29,16.69]
[1673868385396,49.21,23.31,23.29,16.69]
[1673868385607,20.0,23.309,23.29,16.69]
[1673868385828,17.0,23.308,23.29,16.69]
[1673868387216,53.67196354,23.307,23.29,16.69]
[1673868387435,17.0,23.306,23.29,16.69]
[1673868387616,32.21,23.305,23.29,16.69]
[1673868387829,17.0,23.304,23.29,16.69]
[1673868388262,17.0,23.305,23.29,16.69]
[1673868388467,17.0,23.305,23.283,114.0339]
[1673868388681,73.67196354,23.304,23.283,114.0339]
[1673868388872,17.0,23.303,23.283,114.0339]
[1673868389090,32.22,23.302,23.283,114.0339]
[1673868389406,37.0,23.301,23.283,114.0339]
[1673868389616,37.0,23.301,23.284,20.0]
[1673868389826,32.22,23.302,23.284,20.0]
[1673868390045,21.46196354,23.308,23.29,16.53]
[1673868390233,49.21,23.307,23.29,16.53]
[1673868390447,70.67196354,23.307,23.284,20.0]
[1673868390657,21.46196354,23.306,23.284,20.0]
[1673868390875,49.21,23.305,23.283,114.0339]
[1673868391078,20.0,23.304,23.283,114.0339]
[1673868391288,49.22,23.303,23.283,114.0339]
[1673868391603,20.0,23.302,23.281,118.0331]
[1673868391836,69.22,23.301,23.281,118.0331]
[1673868392151,21.46196354,23.3,23.281,118.0331]
[1673868392375,69.22,23.299,23.281,118.0331]
[1673868392674,90.68196354,23.299,23.281,118.0331]
[1673868393282,90.68196354,23.299,23.27,130.1851]
[1673868393493,90.68196354,23.299,23.271,139.279]
[1673868393920,20.0,23.298,23.271,139.279]
[1673868394144,20.0,23.296,23.271,139.279]
[1673868394337,52.23,23.295,23.271,139.279]
[1673868394547,69.23,23.295,23.271,139.279]
[1673868394765,90.69196354,23.295,23.271,139.279]
[1673868394965,21.46196354,23.294,23.271,139.279]
[1673868395177,69.23,23.293,23.271,139.279]
[1673868395394,69.23,23.293,23.27,130.1851]
[1673868395608,21.46196354,23.292,23.27,130.1851]
[1673868395819,69.23,23.291,23.27,130.1851]
[1673868396965,69.23,23.291,23.27,138.6651]
[1673868397719,90.69196354,23.291,23.27,138.6651]
[1673868398432,21.46196354,23.29,23.27,138.6651]
[1673868398647,69.23,23.291,23.27,138.6651]
[1673868398648,20.0,23.289,23.27,138.6651]
[1673868398858,20.0,23.289,23.271,20.0]
[1673868399285,20.0,23.294,23.271,20.0]
[1673868399499,32.23,23.293,23.271,20.0]
[1673868399714,20.0,23.292,23.271,20.0]
[1673868400331,20.0,23.293,23.28,25.17]
[1673868400765,20.0,23.299,23.28,25.17]
[1673868400979,32.22,23.298,23.28,25.17]
[1673868401168,37.0,23.297,23.28,25.17]
[1673868401379,32.23,23.296,23.28,25.17]
[1673868401587,37.0,23.295,23.28,25.17]
[1673868401821,32.23,23.294,23.28,25.17]
[1673868402026,37.0,23.293,23.28,25.17]
[1673868402959,32.23,23.295,23.28,25.17]
[1673868403166,32.21,23.307,23.28,25.17]
[1673868403374,20.0,23.306,23.281,119.1542]
[1673868403580,32.21,23.305,23.281,119.1542]
[1673868403797,20.0,23.304,23.281,119.1542]
[1673868404106,32.22,23.303,23.282,20.0]
[1673868404324,32.21,23.308,23.29,25.17]
[1673868404533,32.2,23.316,23.29,25.17]
[1673868404747,20.0,23.315,23.29,25.17]
[1673868404969,32.2,23.314,23.29,25.17]
[1673868405494,32.2,23.316,23.29,25.17]
[1673868406104,41.46196354,23.315,23.29,25.17]
[1673868406313,32.2,23.314,23.29,25.17]
[1673868406548,53.66196354,23.314,23.29,25.17]
[1673868406761,41.46196354,23.313,23.29,25.17]
[1673868407081,32.2,23.312,23.29,25.17]
[1673868407293,37.0,23.311,23.29,25.17]
[1673868407474,32.21,23.31,23.29,25.17]
[1673868407685,37.0,23.309,23.29,25.17]
[1673868407910,58.46196354,23.309,23.29,25.17]
[1673868408230,53.67196354,23.308,23.29,25.17]
[1673868408441,17.0,23.307,23.29,25.17]
[1673868408861,41.46196354,23.306,23.283,111.7184]
[1673868409173,70.67196354,23.305,23.283,111.7184]
[1673868409379,20.0,23.304,23.283,111.7184]
[1673868409701,70.68196354,23.303,23.283,111.7184]
[1673868410310,20.0,23.302,23.283,111.7184]
[1673868410641,17.0,23.301,23.283,111.7184]
[1673868410956,20.0,23.3,23.283,111.7184]
[1673868411146,49.22,23.299,23.283,111.7184]
[1673868411361,49.22,23.299,23.27,25.16]
[1673868411362,93.82226827,23.299,23.27,25.16]
[1673868411696,20.0,23.297,23.27,25.16]
[1673868411903,49.23,23.296,23.27,25.16]